fUSD/lending_fUSD_20250609
["ID","MTS","AMOUNT","RATE_DAILY","PERIOD"]
[365096704,1749463845515,-605.93246459,0.00025698,2]
[365096705,1749463845526,-564.77798477,0.00025698,2]
[365096706,1749463845536,-452.24616264,0.00025698,2]
[365096707,1749463845546,-838.96709266,0.00025698,2]
[365096708,1749463845555,-1007.13044568,0.00025698,2]
[365096709,1749463845565,-237.0,0.000259,2]
[365096710,1749463845575,-253.7260715,0.00025969,2]
[365096711,1749463845584,-1000.0,0.00025989,2]
[365096712,1749463845594,-1000.0,0.00026,2]
[365096713,1749463845603,-2000.0,0.00026,2]
[365096714,1749463845614,-4000.0,0.00026,4]
[365096715,1749463845623,-175.82,0.00026102,2]
[365096716,1749463845631,-447.93,0.00026112,2]
[365096717,1749463845640,-1333.0,0.00026137,120]
[365096718,1749463845649,-1078.0,0.00026626,2]
[365096719,1749463845659,-315.77,0.00026676,2]
[365096720,1749463845668,-825.52,0.000267,31]
[365096721,1749463845677,-825.52,0.000267,31]
[365096722,1749463845686,-825.52,0.000267,31]
[365096723,1749463845695,-825.52,0.000267,31]
[365096724,1749463845704,-825.52,0.000267,31]
[365096725,1749463845713,-825.52,0.000267,31]
[365096726,1749463845722,-825.52,0.000267,31]
[365096727,1749463845731,-825.52,0.000267,31]
[365096728,1749463845741,-825.52,0.000267,31]
[365096729,1749463845750,-825.52,0.000267,31]
[365096730,1749463845759,-825.52,0.000267,31]
[365096731,1749463845768,-825.52,0.000267,31]
[365096732,1749463845777,-825.52,0.000267,31]
[365096733,1749463845786,-825.52,0.000267,31]
[365096734,1749463845796,-825.52,0.000267,31]
[365096735,1749463845806,-825.52,0.000267,31]
[365096736,1749463845815,-825.52,0.000267,31]
[365096737,1749463845824,-825.52,0.000267,31]
[365096738,1749463845834,-825.52,0.000267,31]
[365096739,1749463845843,-825.52,0.000267,31]
[365096740,1749463845852,-825.52,0.000267,31]
[365096741,1749463845861,-825.52,0.000267,31]
[365096742,1749463845871,-825.52,0.000267,31]
[365096743,1749463845880,-825.52,0.000267,31]
[365096744,1749463845889,-253.7260715,0.0002674,2]
[365096745,1749463845899,-500.0,0.00026808,2]
[365096746,1749463845908,-1542.25098807,0.00026893,2]
[365096747,1749463845918,-5700.0,0.000269,9]
[365096748,1749463845928,-1419.66050731,0.00027099,2]
[365096749,1749463845937,-430.0,0.00027123,2]
[365096750,1749463845946,-430.0,0.00027123,2]
[365096751,1749463845955,-430.0,0.00027123,2]
[365096752,1749463845965,-430.0,0.00027123,2]
[365096753,1749463845974,-430.0,0.00027123,2]
[365096754,1749463845983,-430.0,0.00027123,2]
[365096755,1749463845993,-430.0,0.00027123,2]
[365096756,1749463846003,-430.0,0.00027123,2]
[365096757,1749463846012,-430.0,0.00027123,2]
[365096758,1749463846022,-430.0,0.00027123,2]
[365096759,1749463846031,-430.0,0.00027123,2]
[365096760,1749463846040,-430.0,0.00027123,2]
[365096761,1749463846050,-430.0,0.00027123,2]
[365096762,1749463846060,-430.0,0.00027123,2]
[365096763,1749463846070,-430.0,0.00027123,2]
[365096764,1749463846079,-430.0,0.00027123,2]
[365096765,1749463846090,-430.0,0.00027123,2]
[365096766,1749463846100,-430.0,0.00027123,2]
[365096767,1749463846110,-430.0,0.00027123,2]
[365096768,1749463846122,-430.0,0.00027123,2]
[365096769,1749463846131,-430.0,0.00027123,2]
[365096770,1749463846140,-430.0,0.00027123,2]
[365096771,1749463846150,-430.0,0.00027123,2]
[365096772,1749463846159,-430.0,0.00027123,2]
[365096773,1749463846168,-430.0,0.00027123,2]
[365096774,1749463846177,-430.0,0.00027123,2]
[365096775,1749463846187,-430.0,0.00027123,2]
[365096776,1749463846196,-430.0,0.00027123,2]
[365096777,1749463846205,-430.0,0.00027123,2]
[365096778,1749463846214,-430.0,0.00027123,2]
[365096779,1749463846224,-430.0,0.00027123,2]
[365096780,1749463846233,-430.0,0.00027123,2]
[365096781,1749463846242,-430.0,0.00027123,2]
[365096782,1749463846252,-430.0,0.00027123,2]
[365096783,1749463846261,-430.0,0.00027123,2]
[365096784,1749463846270,-430.0,0.00027123,2]
[365096785,1749463846281,-430.0,0.00027123,2]
[365096786,1749463846294,-430.0,0.00027123,2]
[365096788,1749463846303,-430.0,0.00027123,2]
[365096790,1749463846313,-430.0,0.00027123,2]
[365096792,1749463846322,-430.0,0.00027123,2]
[365096794,1749463846333,-430.0,0.00027123,2]
[365096796,1749463846342,-430.0,0.00027123,2]
[365096798,1749463846352,-430.0,0.00027123,2]
[365096800,1749463846362,-430.0,0.00027123,2]
[365096801,1749463846371,-430.0,0.00027123,2]
[365096803,1749463846381,-430.0,0.00027123,2]
[365096805,1749463846392,-430.0,0.00027123,2]
[365096807,1749463846402,-430.0,0.00027123,2]
[365096808,1749463846411,-430.0,0.00027123,2]
[365096810,1749463846421,-430.0,0.00027123,2]
[365096812,1749463846431,-430.0,0.00027123,2]
[365096813,1749463846440,-430.0,0.00027123,2]
[365096815,1749463846450,-430.0,0.00027123,2]
[365096816,1749463846460,-430.0,0.00027123,2]
[365096817,1749463846470,-430.0,0.00027123,2]
[365096818,1749463846480,-430.0,0.00027123,2]
[365096819,1749463846490,-430.0,0.00027123,2]
[365096820,1749463846499,-430.0,0.00027123,2]
[365096821,1749463846509,-430.0,0.00027123,2]
[365096822,1749463846519,-430.0,0.00027123,2]
[365096823,1749463846529,-430.0,0.00027123,2]
[365096824,1749463846539,-430.0,0.00027123,2]
[365096825,1749463846549,-430.0,0.00027123,2]
[365096826,1749463846559,-430.0,0.00027123,2]
[365096827,1749463846569,-430.0,0.00027123,2]
[365096828,1749463846579,-430.0,0.00027123,2]
[365096829,1749463846588,-430.0,0.00027123,2]
[365096830,1749463846597,-430.0,0.00027123,2]
[365096831,1749463846607,-430.0,0.00027123,2]
[365096832,1749463846616,-430.0,0.00027123,2]
[365096833,1749463846626,-430.0,0.00027123,2]
[365096834,1749463846635,-430.0,0.00027123,2]
[365096835,1749463846645,-430.0,0.00027123,2]
[365096836,1749463846655,-430.0,0.00027123,2]
[365096837,1749463846665,-430.0,0.00027123,2]
[365096838,1749463846674,-430.0,0.00027123,2]
[365096839,1749463846684,-430.0,0.00027123,2]
[365096840,1749463846695,-430.0,0.00027123,2]
[365096841,1749463846704,-430.0,0.00027123,2]
[365096842,1749463846714,-430.0,0.00027123,2]
[365096843,1749463846723,-430.0,0.00027123,2]
[365096844,1749463846733,-430.0,0.00027123,2]
[365096845,1749463846742,-430.0,0.00027123,2]
[365096846,1749463846752,-430.0,0.00027123,2]
[365096847,1749463846761,-430.0,0.00027123,2]
[365096848,1749463846770,-430.0,0.00027123,2]
[365096849,1749463846779,-430.0,0.00027123,2]
[365096850,1749463846788,-430.0,0.00027123,2]
[365096851,1749463846797,-430.0,0.00027123,2]
[365096852,1749463846806,-430.0,0.00027123,2]
[365096853,1749463846814,-430.0,0.00027123,2]
[365096854,1749463846823,-430.0,0.00027123,2]
[365096855,1749463846832,-430.0,0.00027123,2]
[365096856,1749463846842,-430.0,0.00027123,2]
[365096857,1749463846851,-430.0,0.00027123,2]
[365096858,1749463846860,-430.0,0.00027123,2]
[365096859,1749463846870,-153.0,0.00027123,2]
[365096860,1749463846879,-153.0,0.00027123,2]
[365096861,1749463846889,-1969.38719934,0.00027128,2]
[365096862,1749463846899,-1613.0,0.00027137,2]
[365096863,1749463846908,-1101.59,0.00027207,2]
[365096864,1749463846918,-537.64,0.00027397,2]
[365096865,1749463846927,-537.64,0.00027397,2]
[365096866,1749463846937,-537.64,0.00027397,2]
[365096867,1749463846947,-537.64,0.00027397,2]
[365096868,1749463846957,-537.64,0.00027397,2]
[365096869,1749463846967,-537.64,0.00027397,2]
[365096870,1749463846976,-537.64,0.00027397,2]
[365096871,1749463846985,-537.64,0.00027397,2]
[365096872,1749463846995,-537.64,0.00027397,2]
[365096873,1749463847005,-537.64,0.00027397,2]
[365096874,1749463847014,-537.64,0.00027397,2]
[365096875,1749463847023,-537.64,0.00027397,2]
[365096876,1749463847033,-537.64,0.00027397,2]
[365096877,1749463847043,-537.64,0.00027397,2]
[365096878,1749463847052,-537.64,0.00027397,2]
[365096879,1749463847062,-537.64,0.00027397,2]
[365096880,1749463847071,-537.64,0.00027397,2]
[365096881,1749463847081,-537.64,0.00027397,2]
[365096882,1749463847090,-537.64,0.00027397,2]
[365096883,1749463847099,-537.64,0.00027397,2]
[365096884,1749463847108,-537.64,0.00027397,2]
[365096885,1749463847117,-537.64,0.00027397,2]
[365096886,1749463847127,-537.64,0.00027397,2]
[365096887,1749463847137,-537.64866677,0.00027397,2]
[365096888,1749463847146,-150.0,0.00027397,2]
[365096889,1749463847156,-5815.84,0.00027397,2]
[365096890,1749463847165,-300.0,0.00027397,2]
[365096891,1749463847175,-25204.72,0.00027397,2]
[365096892,1749463847184,-154.37146747,0.00027397,5]
[365096893,1749463847194,-394.0,0.000274,2]
[365096894,1749463847203,-1200.0,0.000274,2]
[365096895,1749463847214,-5000.0,0.00027445,2]
[365096896,1749463847223,-447.93,0.00027481,2]
[365096897,1749463847233,-253.7260715,0.00027512,2]
[365096898,1749463847243,-422.22883887,0.00027616,2]
[365096899,1749463847253,-391.0,0.0002783,15]
[365096900,1749463847263,-4000.0,0.00028,4]
[365096901,1749463847273,-1078.0,0.00028027,5]
[365096902,1749463847286,-150.0,0.00028118,2]
[365096903,1749463847296,-1550.0,0.00028134,2]
[365096904,1749463847307,-253.7260715,0.00028283,2]
[365096905,1749463847317,-151.94949467,0.00028383,2]
[365096906,1749463847326,-150.0,0.00028383,2]
[365096907,1749463847336,-152.47083393,0.00028383,2]
[365096908,1749463847346,-150.0,0.00028383,2]
[365096909,1749463847356,-203.10503826,0.00028383,2]
[365096910,1749463847367,-150.0,0.00028383,2]
[365096911,1749463847378,-150.0,0.00028383,2]
[365096912,1749463847387,-1550.0,0.00028424,2]
[365096913,1749463847398,-758.99266673,0.00028443,2]
[365096914,1749463847408,-1000.0,0.000287,2]
[365096915,1749463847418,-2000.0,0.000287,2]
[365096916,1749463847427,-1550.0,0.00028714,2]
[365096917,1749463847437,-5815.84,0.00028767,2]
[365096918,1749463847446,-150.0,0.00028839,2]
[365096919,1749463847457,-447.93,0.00028851,2]
[365096920,1749463847467,-152.0,0.00029,120]
[365096921,1749463847477,-152.0,0.00029,120]
[365096922,1749463847487,-1550.0,0.00029004,2]
[365096923,1749463847496,-463.15012925,0.00029004,2]
[365096924,1749463847507,-1542.25098807,0.00029053,2]
[365096925,1749463847517,-253.7260715,0.00029054,2]
[365096926,1749463847527,-983.61172503,0.00029096,7]
[365096927,1749463847536,-1550.0,0.00029294,2]
[365096928,1749463847546,-602.49512137,0.00029428,5]
[365096929,1749463847555,-1101.59,0.0002947,2]
[365096930,1749463847565,-1969.38719934,0.00029481,2]
[365096931,1749463847575,-150.0,0.0002956,2]
[365096932,1749463847584,-1550.0,0.00029584,2]
[365096933,1749463847594,-500.0,0.00029617,2]
[365096934,1749463847604,-253.7260715,0.00029826,2]
[365096935,1749463847615,-1550.0,0.00029874,2]
[365096936,1749463847626,-246.05198787,0.000299,2]
[365096937,1749463847636,-10528.34451433,0.0003,3]
[365096938,1749463847647,-500.0,0.0003,2]
[365096939,1749463847657,-169.0,0.0003,22]
[365096940,1749463847667,-191.0,0.0003,14]
[365096941,1749463847677,-158.29431667,0.0003,60]
[365096942,1749463847687,-158.29431667,0.0003,60]
[365096943,1749463847697,-158.29431667,0.0003,60]
[365096944,1749463847707,-158.29431667,0.0003,60]
[365096945,1749463847717,-158.29431667,0.0003,60]
[365096946,1749463847727,-158.29431667,0.0003,60]
[365096947,1749463847738,-158.29431667,0.0003,60]
[365096948,1749463847747,-158.29431667,0.0003,60]
[365096949,1749463847758,-158.29431667,0.0003,60]
[365096950,1749463847767,-1500.0,0.0003,2]
[365096951,1749463847777,-214.0,0.0003,2]
[365096952,1749463847788,-4000.0,0.0003,4]
[365096953,1749463847799,-1448.5597,0.00030099,2]
[365096954,1749463847809,-1000.0,0.00030099,2]
[365096955,1749463847819,-825.52,0.000301,31]
[365096956,1749463847828,-825.52,0.000301,31]
[365096957,1749463847838,-825.52,0.000301,31]
[365096958,1749463847847,-825.52,0.000301,31]
[365096959,1749463847857,-825.52,0.000301,31]
[365096960,1749463847866,-825.52,0.000301,31]
[365096961,1749463847876,-825.52,0.000301,31]
[365096962,1749463847885,-825.52,0.000301,31]
[365096963,1749463847895,-825.52,0.000301,31]
[365096964,1749463847905,-825.52,0.000301,31]
[365096965,1749463847915,-825.52,0.000301,31]
[365096966,1749463847924,-825.52,0.000301,31]
[365096967,1749463847934,-825.52,0.000301,31]
[365096968,1749463847943,-825.52,0.000301,31]
[365096969,1749463847953,-825.52,0.000301,31]
[365096970,1749463847962,-825.52,0.000301,31]
[365096971,1749463847972,-825.52,0.000301,31]
[365096972,1749463847981,-825.52,0.000301,31]
[365096973,1749463847991,-825.52,0.000301,31]
[365096974,1749463848000,-825.52,0.000301,31]
[365096975,1749463848010,-825.52,0.000301,31]
[365096976,1749463848020,-825.52,0.000301,31]
[365096977,1749463848030,-825.52,0.000301,31]
[365096978,1749463848039,-825.52,0.000301,31]
[365096979,1749463848051,-12114.33,0.0003011,2]
[365096980,1749463848060,-574.06,0.00030136,2]
[365096981,1749463848071,-480.0,0.00030136,10]
[365096982,1749463848080,-480.0,0.00030136,10]
[365096983,1749463848090,-480.0,0.00030136,10]
[365096984,1749463848100,-480.0,0.00030136,10]
[365096985,1749463848110,-480.0,0.00030136,10]
[365096986,1749463848121,-497.88849559,0.00030136,10]
[365096987,1749463848131,-600.0,0.00030137,2]
[365096988,1749463848142,-188.97,0.00030137,80]
[365096989,1749463848151,-5815.84,0.00030137,2]
[365096990,1749463848161,-218809.61,0.000302,7]
[365096991,1749463848171,-447.93,0.00030221,2]
[365096992,1749463848181,-150.0,0.00030281,2]
[365096993,1749463848191,-992.4486,0.00030299,2]
[365096994,1749463848201,-2000.0,0.00030299,2]
[365096995,1749463848211,-1333.0,0.00030575,21]
[365096996,1749463848221,-253.7260715,0.00030597,2]
[365096997,1749463848231,-207.0,0.00030613,30]
[365096998,1749463848241,-574.06,0.00030821,3]
[365096999,1749463848251,-300.0,0.00031,2]
[365097000,1749463848261,-1800.0,0.00031,32]
[365097001,1749463848271,-150.0,0.00031002,2]
[365097002,1749463848281,-1542.25098807,0.00031212,2]
[365097003,1749463848296,-253.7260715,0.00031368,2]
[365097004,1749463848306,-2000.0,0.000315,2]
[365097005,1749463848315,-574.06,0.00031506,4]
[365097006,1749463848326,-5815.84,0.00031507,2]
[365097007,1749463848336,-447.93,0.00031591,2]
[365097008,1749463848347,-192.0,0.00031644,14]
[365097009,1749463848356,-507.15672182,0.00031668,2]
[365097010,1749463848368,-218809.61,0.000317,7]
[365097011,1749463848378,-150.0,0.00031723,2]
[365097012,1749463848388,-1101.59,0.00031734,2]
[365097013,1749463848399,-1969.38719934,0.00031833,2]
[365097014,1749463848409,-207.0,0.00031995,2]
[365097015,1749463848420,-3600.0,0.00032,33]
[365097016,1749463848430,-4000.0,0.00032,4]
[365097017,1749463848440,-1333.0,0.00032055,30]
[365097018,1749463848451,-574.06,0.00032191,5]
[365097019,1749463848463,-588.0,0.00032328,2]
[365097020,1749463848473,-588.0,0.00032328,2]
[365097021,1749463848483,-588.0,0.00032328,2]
[365097022,1749463848495,-599.73559266,0.00032328,2]
[365097023,1749463848506,-500.0,0.00032425,2]
[365097024,1749463848517,-150.0,0.00032444,2]
[365097025,1749463848528,-574.06,0.00032876,6]
[365097026,1749463848538,-333.59,0.00032877,2]
[365097027,1749463848550,-5815.84,0.00032877,2]
[365097028,1749463848561,-394.41982277,0.000329,2]
[365097029,1749463848571,-1200.0,0.000329,2]
[365097030,1749463848581,-526.30192517,0.000329,2]
[365097031,1749463848592,-447.93,0.00032961,2]
[365097032,1749463848604,-150.0,0.00033,14]
[365097033,1749463848615,-17667.06,0.00033,14]
[365097034,1749463848626,-218809.61,0.00033,14]
[365097035,1749463848796,-214.0,0.00033,2]
[365097036,1749463848840,-621.824,0.00033011,34]
[365097037,1749463848851,-315.77,0.00033165,2]
[365097038,1749463848861,-150.0,0.00033165,2]
[365097039,1749463848872,-1542.25098807,0.00033371,2]
[365097040,1749463848882,-825.52,0.000335,31]
[365097041,1749463848892,-825.52,0.000335,31]
[365097042,1749463848903,-825.52,0.000335,31]
[365097043,1749463848912,-825.52,0.000335,31]
[365097044,1749463848922,-825.52,0.000335,31]
[365097045,1749463848932,-825.52,0.000335,31]
[365097046,1749463848942,-825.52,0.000335,31]
[365097047,1749463848953,-825.52,0.000335,31]
[365097048,1749463848963,-825.52,0.000335,31]
[365097049,1749463848973,-825.52,0.000335,31]
[365097050,1749463848983,-825.52,0.000335,31]
[365097051,1749463848992,-825.52,0.000335,31]
[365097052,1749463849002,-762.79902392,0.00033534,14]
[365097053,1749463849012,-574.06,0.00033561,12]
[365097054,1749463849022,-6572.93555248,0.00033563,2]
[365097055,1749463849032,-6572.93555247,0.00033563,2]
[365097056,1749463849042,-6572.93555247,0.00033563,2]
[365097057,1749463849052,-300.0,0.00033808,2]
[365097058,1749463849062,-1000.0,0.00033836,2]
[365097059,1749463849073,-150.0,0.00033886,2]
[365097060,1749463849083,-1101.59,0.00033998,2]
[365097061,1749463849093,-1800.0,0.00034,35]
[365097062,1749463849103,-4000.0,0.00034,4]
[365097063,1749463849114,-500.0,0.00034058,60]
[365097064,1749463849126,-346.28,0.000341,14]
[365097065,1749463849136,-346.28,0.000341,14]
[365097066,1749463849146,-346.28,0.000341,14]
[365097067,1749463849156,-346.28,0.000341,14]
[365097068,1749463849166,-1969.38719934,0.00034185,2]
[365097069,1749463849176,-2000.0,0.000342,2]
[365097070,1749463849186,-574.06,0.00034246,13]
[365097071,1749463849197,-218809.61,0.000343,14]
[365097072,1749463849207,-447.93,0.00034331,2]
[365097073,1749463849218,-346.28,0.000346,14]
[365097074,1749463849228,-266.18,0.000346,120]
[365097075,1749463849239,-346.28,0.000346,14]
[365097076,1749463849250,-346.28,0.000346,14]
[365097077,1749463849260,-317.92,0.000346,120]
[365097078,1749463849270,-500.0,0.00034606,60]
[365097079,1749463849280,-150.0,0.00034607,2]
[365097080,1749463849294,-7100.0,0.000349,12]
[365097081,1749463849304,-574.06,0.00034931,14]
[365097082,1749463849315,-2999.99,0.00035,2]
[365097083,1749463849327,-3000.0,0.00035,2]
[365097084,1749463849337,-3000.0,0.00035,2]
[365097085,1749463849347,-3000.0,0.00035,2]
[365097086,1749463849357,-3000.0,0.00035,2]
[365097087,1749463849367,-1766.32,0.00035,2]
[365097088,1749463849378,-346.28,0.00035,14]
[365097089,1749463849388,-17667.06,0.00035,14]
[365097090,1749463849398,-164.80819246,0.00035,7]
[365097091,1749463849408,-250.647023,0.00035,22]
[365097092,1749463849418,-3600.0,0.00035,36]
[365097093,1749463849428,-1333.0,0.00035014,90]
[365097094,1749463849439,-246.05198786,0.00035024,2]
[365097095,1749463849448,-1420.47,0.00035068,2]
[365097096,1749463849458,-150.14812259,0.00035091,7]
[365097097,1749463849468,-150.0,0.00035091,7]
[365097098,1749463849478,-150.0,0.00035091,7]
[365097099,1749463849487,-150.0,0.00035091,7]
[365097100,1749463849497,-150.0,0.00035091,7]
[365097101,1749463849507,-150.0,0.00035091,7]
[365097102,1749463849517,-150.0,0.00035091,7]
[365097103,1749463849527,-150.70605843,0.00035091,7]
[365097104,1749463849536,-150.26567141,0.00035091,7]
[365097105,1749463849547,-152.0,0.000351,120]
[365097106,1749463849558,-534.93952995,0.00035154,60]
[365097107,1749463849568,-500.0,0.00035233,2]
[365097108,1749463849578,-150.0,0.00035328,2]
[365097109,1749463849588,-150.0,0.00035391,7]
[365097110,1749463849598,-150.0,0.00035481,7]
[365097111,1749463849608,-346.28,0.000355,14]
[365097112,1749463849618,-152.0,0.000355,120]
[365097113,1749463849628,-1542.25098807,0.00035531,2]
[365097114,1749463849638,-159.59441305,0.00035616,120]
[365097115,1749463849647,-574.06,0.00035616,15]
[365097116,1749463849658,-1000.0,0.00035616,15]
[365097117,1749463849668,-789.51575417,0.00035616,15]
[365097118,1749463849677,-200.8106488,0.00035636,14]
[365097119,1749463849687,-1427.79,0.0003564,30]
[365097120,1749463849697,-150.0,0.00035691,7]
[365097121,1749463849707,-447.93,0.00035701,2]
[365097122,1749463849716,-500.0,0.00035702,60]
[365097123,1749463849728,-150.0,0.00035871,7]
[365097124,1749463849739,-150.0,0.00035871,7]
[365097125,1749463849748,-346.28,0.000359,14]
[365097126,1749463849758,-346.28,0.000359,14]
[365097127,1749463849768,-150.0,0.00035991,7]
[365097128,1749463849778,-1800.0,0.00036,37]
[365097129,1749463849788,-4000.0,0.00036,4]
[365097130,1749463849798,-214.0,0.00036,2]
[365097131,1749463849808,-205.0,0.00036,30]
[365097132,1749463849818,-150.0,0.00036049,2]
[365097133,1749463849827,-200.0,0.00036164,2]
[365097134,1749463849838,-500.0,0.0003625,60]
[365097135,1749463849848,-150.0,0.00036261,7]
[365097136,1749463849858,-1101.59,0.00036262,2]
[365097137,1749463849868,-150.0,0.00036291,7]
[365097138,1749463849879,-574.06,0.00036301,16]
[365097139,1749463849890,-150.0,0.00036391,7]
[365097140,1749463849901,-150.0,0.00036391,7]
[365097141,1749463849911,-346.28,0.000364,14]
[365097142,1749463849922,-346.28,0.000364,14]
[365097143,1749463849933,-1333.0,0.00036493,120]
[365097144,1749463849944,-17667.06,0.000365,14]
[365097145,1749463849956,-1969.38719934,0.00036538,2]
[365097146,1749463849967,-150.0,0.00036591,7]
[365097147,1749463849979,-300.0,0.00036617,5]
[365097148,1749463849990,-150.0,0.00036651,7]
[365097149,1749463850001,-150.0,0.00036651,7]
[365097150,1749463850012,-207.0,0.00036663,11]
[365097151,1749463850024,-268.39782792,0.0003676,2]
[365097152,1749463850035,-150.0,0.0003677,2]
[365097153,1749463850049,-300.0,0.00036799,10]
[365097154,1749463850060,-346.28,0.000368,14]
[365097155,1749463850070,-346.28,0.000368,14]
[365097156,1749463850087,-1000000.0,0.000368,2]
[365097157,1749463850098,-1508.5252,0.0003686,45]
[365097158,1749463850109,-435.8656,0.00036888,7]
[365097159,1749463850119,-150.0,0.00036891,7]
[365097160,1749463850129,-2000.0,0.000369,2]
[365097161,1749463850140,-574.06,0.00036986,17]
[365097162,1749463850150,-150.0,0.00037041,7]
[365097163,1749463850158,-150.0,0.00037041,7]
[365097164,1749463850166,-447.93,0.0003707,2]
[365097165,1749463850175,-300.0,0.000371,2]
[365097166,1749463850185,-300.0,0.000371,2]
[365097167,1749463850196,-300.0,0.000371,2]
[365097168,1749463850207,-300.0,0.000371,2]
[365097169,1749463850217,-314.34355624,0.000371,2]
[365097170,1749463850227,-150.0,0.0003719,7]
[365097171,1749463850237,-346.28,0.000372,14]
[365097172,1749463850247,-1152.32391958,0.000372,120]
[365097173,1749463850257,-1152.32391954,0.000372,120]
[365097174,1749463850268,-1152.32391954,0.000372,120]
[365097175,1749463850278,-1152.32391954,0.000372,120]
[365097176,1749463850291,-500.0,0.00037346,60]
[365097177,1749463850304,-205.0,0.00037397,30]
[365097178,1749463850315,-150.0,0.0003743,7]
[365097179,1749463850327,-150.0,0.0003743,7]
[365097180,1749463850337,-150.0,0.0003749,7]
[365097181,1749463850348,-150.0,0.00037491,2]
[365097182,1749463850359,-150.0,0.00037631,120]
[365097183,1749463850369,-574.06,0.00037671,18]
[365097184,1749463850379,-188.97,0.00037671,120]
[365097185,1749463850389,-1542.25098807,0.0003769,2]
[365097186,1749463850399,-150.0,0.0003769,7]
[365097187,1749463850410,-150.0,0.0003769,7]
[365097188,1749463850420,-300.0,0.00037699,10]
[365097189,1749463850429,-346.28,0.000377,14]
[365097190,1749463850439,-218809.61,0.000377,14]
[365097191,1749463850449,-150.0,0.0003779,7]
[365097192,1749463850459,-150.0,0.0003782,7]
[365097193,1749463850469,-6000.0,0.0003785,48]
[365097194,1749463850479,-169.3683776,0.00037973,2]
[365097195,1749463850489,-3599.999999,0.00038,39]
[365097196,1749463850501,-500.0,0.00038,120]
[365097197,1749463850511,-500.0,0.00038,120]
[365097198,1749463850521,-500.0,0.00038,120]
[365097199,1749463850531,-500.0,0.00038,120]
[365097200,1749463850541,-500.0,0.00038,120]
[365097201,1749463850555,-500.0,0.00038,120]
[365097202,1749463850564,-499.99999901,0.00038,2]
[365097203,1749463850574,-4000.0,0.00038,4]
[365097204,1749463850584,-500.0,0.00038042,5]
[365097205,1749463850594,-150.0,0.0003809,7]
[365097206,1749463850604,-346.28,0.000381,14]
[365097207,1749463850614,-150.0,0.0003821,7]
[365097208,1749463850624,-150.0,0.0003821,7]
[365097209,1749463850633,-150.0,0.00038212,2]
[365097210,1749463850643,-49999.99999901,0.00038345,120]
[365097211,1749463850653,-603.28,0.00038356,120]
[365097212,1749463850662,-603.28,0.00038356,120]
[365097213,1749463850672,-603.28,0.00038356,120]
[365097214,1749463850681,-603.28,0.00038356,120]
[365097215,1749463850691,-603.28,0.00038356,120]
[365097216,1749463850701,-603.28,0.00038356,120]